{"text_format":"1","workbook":"xlsx","n_sheets":3,"sheets":["2号-1イ","2号-1ロ","2号-1ハ"],"not_rendered":{"charts":0,"images":0,"macros":0,"external_links":0,"defined_names":3,"comments":0,"pivot_tables":0},"unopened":[],"bounds":{"document_bytes":16777216,"sheet_cells":100000,"rows_first":2000,"rows_last":500,"rows_between":2000,"halvings":0,"cell_chars":16384,"cell_head_chars":4096},"cells_cut":0,"cells_raw":0,"read":"whole","date_system":"1900"}

{"sheet":"2号-1イ","index":0,"n_rows":41,"n_cols":49,"rows_kept":41,"cut":false,"hidden":false,"merged":[[38,19,38,30],[38,31,38,35],[38,37,38,42],[27,37,27,42],[40,31,40,35],[40,37,40,42],[40,18,40,30],[36,33,36,40],[36,41,36,42],[36,8,36,18],[36,19,36,20],[36,21,36,28],[36,29,36,30],[36,31,36,32],[35,8,35,18],[35,29,35,30],[35,41,35,42],[35,33,35,40],[35,21,35,28],[35,19,35,20],[35,31,35,32],[34,8,34,18],[34,29,34,30],[34,41,34,42],[34,33,34,40],[34,21,34,28],[34,19,34,20],[34,31,34,32],[33,8,33,18],[33,29,33,30],[33,41,33,42],[33,33,33,40],[33,21,33,28],[33,19,33,20],[33,31,33,32],[31,8,31,18],[31,19,31,30],[31,31,31,42],[32,8,32,18],[32,29,32,30],[32,41,32,42],[32,21,32,28],[32,33,32,40],[32,19,32,20],[32,31,32,32],[27,19,27,30],[27,31,27,35],[9,8,9,42],[29,8,29,42],[23,8,23,18],[23,31,23,42],[23,19,23,20],[25,8,25,18],[25,29,25,30],[25,41,25,42],[25,21,25,27],[25,19,25,20],[25,31,25,32],[25,33,25,39],[21,41,21,42],[22,31,22,40],[22,41,22,42],[24,31,24,40],[24,41,24,42],[18,41,18,42],[19,31,19,40],[19,41,19,42],[20,31,20,40],[20,41,20,42],[13,41,13,42],[14,31,14,40],[14,41,14,42],[15,31,15,40],[15,41,15,42],[20,29,20,30],[21,29,21,30],[22,29,22,30],[24,29,24,30],[13,31,13,40],[16,31,16,40],[17,31,17,40],[18,31,18,40],[21,31,21,40],[13,29,13,30],[14,29,14,30],[15,29,15,30],[16,29,16,30],[17,29,17,30],[24,8,24,18],[12,19,12,28],[12,29,12,30],[12,31,12,40],[12,41,12,42],[13,19,13,28],[14,19,14,28],[15,19,15,28],[16,19,16,28],[17,19,17,28],[18,19,18,28],[19,19,19,28],[20,19,20,28],[21,19,21,28],[22,19,22,28],[24,19,24,28],[11,19,11,30],[11,31,11,42],[11,8,11,18],[12,8,12,18],[13,8,13,18],[14,8,14,18],[15,8,15,18],[16,8,16,18],[17,8,17,18],[18,8,18,18],[19,8,19,18],[21,8,21,18],[22,8,22,18],[20,8,20,18],[19,29,19,30],[18,29,18,30],[17,41,17,42],[16,41,16,42],[2,43,2,44],[5,22,5,40],[6,22,6,40],[7,22,7,40],[2,40,2,41],[7,17,7,20],[1,0,1,49],[6,41,6,49],[4,22,4,40],[4,17,4,20],[5,17,5,20],[6,17,6,20],[2,46,2,47]]}
[]
["中小企業信用保険法第2条第5項第2号-1イ認定申請書添付資料"]
[null,null,null,null,null,null,null,null,null,null,null,null,null,null,null,null,null,null,null,null,null,null,null,null,null,null,null,null,null,null,null,null,null,null,null,null,null,null,"令和",null,null,null,"年",null,null,"月",null,null,"日"]
[]
[null,null,null,null,null,null,null,null,null,null,null,null,null,null,null,null,null,"所在地"]
[null,null,null,null,null,null,null,null,null,null,null,null,null,null,null,null,null,"企業名"]
[null,null,null,null,null,null,null,null,null,null,null,null,null,null,null,null,null,"代表者名",null,null,null,null,null,null,null,null,null,null,null,null,null,null,null,null,null,null,null,null,null,null,null,"個人事業主の場合\n代表者名は自署"]
[null,null,null,null,null,null,null,null,null,null,null,null,null,null,null,null,null,"電話番号",null,null,null,null,"(　　　　　　　　)"]
[]
[null,null,null,null,null,null,null,null,"（1）　（　　　　　　　　　　　　　　）に対する取引依存度"]
[]
[null,null,null,null,null,null,null,null,"　",null,null,null,null,null,null,null,null,null,null,"全取引額等",null,null,null,null,null,null,null,null,null,null,null,"　　　　　　　　　　　に対する取引額"]
[null,null,null,null,null,null,null,null,"令和　　　　　年　　　　　月",null,null,null,null,null,null,null,null,null,null,null,null,null,null,null,null,null,null,null,null,"円",null,null,null,null,null,null,null,null,null,null,null,"円"]
[null,null,null,null,null,null,null,null,"令和　　　　　年　　　　　月",null,null,null,null,null,null,null,null,null,null,null,null,null,null,null,null,null,null,null,null,"円",null,null,null,null,null,null,null,null,null,null,null,"円"]
[null,null,null,null,null,null,null,null,"令和　　　　　年　　　　　月",null,null,null,null,null,null,null,null,null,null,null,null,null,null,null,null,null,null,null,null,"円",null,null,null,null,null,null,null,null,null,null,null,"円"]
[null,null,null,null,null,null,null,null,"令和　　　　　年　　　　　月",null,null,null,null,null,null,null,null,null,null,null,null,null,null,null,null,null,null,null,null,"円",null,null,null,null,null,null,null,null,null,null,null,"円"]
[null,null,null,null,null,null,null,null,"令和　　　　　年　　　　　月",null,null,null,null,null,null,null,null,null,null,null,null,null,null,null,null,null,null,null,null,"円",null,null,null,null,null,null,null,null,null,null,null,"円"]
[null,null,null,null,null,null,null,null,"令和　　　　　年　　　　　月",null,null,null,null,null,null,null,null,null,null,null,null,null,null,null,null,null,null,null,null,"円",null,null,null,null,null,null,null,null,null,null,null,"円"]
[null,null,null,null,null,null,null,null,"令和　　　　　年　　　　　月",null,null,null,null,null,null,null,null,null,null,null,null,null,null,null,null,null,null,null,null,"円",null,null,null,null,null,null,null,null,null,null,null,"円"]
[null,null,null,null,null,null,null,null,"令和　　　　　年　　　　　月",null,null,null,null,null,null,null,null,null,null,null,null,null,null,null,null,null,null,null,null,"円",null,null,null,null,null,null,null,null,null,null,null,"円"]
[null,null,null,null,null,null,null,null,"令和　　　　　年　　　　　月",null,null,null,null,null,null,null,null,null,null,null,null,null,null,null,null,null,null,null,null,"円",null,null,null,null,null,null,null,null,null,null,null,"円"]
[null,null,null,null,null,null,null,null,"令和　　　　　年　　　　　月",null,null,null,null,null,null,null,null,null,null,null,null,null,null,null,null,null,null,null,null,"円",null,null,null,null,null,null,null,null,null,null,null,"円"]
[null,null,null,null,null,null,null,null,"令和　　　　　年　　　　　月",null,null,null,null,null,null,null,null,null,null,null,null,null,null,null,null,null,null,null,null,"円",null,null,null,null,null,null,null,null,null,null,null,"円"]
[null,null,null,null,null,null,null,null,"　　最近1か月",null,null,null,null,null,null,null,null,null,null,"【C】"]
[null,null,null,null,null,null,null,null,"令和　　　　　年　　　　　月",null,null,null,null,null,null,null,null,null,null,null,null,null,null,null,null,null,null,null,null,"円",null,null,null,null,null,null,null,null,null,null,null,"円"]
[null,null,null,null,null,null,null,null,"合　　　　　　計",null,null,null,null,null,null,null,null,null,null,"【B】",null,{"$f":"SUM(T13:AC23,T25)","v":0},null,null,null,null,null,null,null,"円",null,"【A】",null,{"$f":"SUM(AF13:AO23,AF25)","v":0},null,null,null,null,null,null,null,"円"]
[]
[null,null,null,null,null,null,null,null,null,null,null,null,null,"取引依存度",null,null,null,null,"：","（　A　/　B　）　×　100　＝",null,null,null,null,null,null,null,null,null,null,null,{"$f":"IFERROR(ROUNDDOWN((AH26/V26)*100,2),\"\")","v":""},null,null,null,null,"％","　≧　20　％"]
[]
[null,null,null,null,null,null,null,null,"（2）　売上高減少率"]
[]
[null,null,null,null,null,null,null,null,"　",null,null,null,null,null,null,null,null,null,null,"事業活動の制限の影響を受けた後の\n最近１か月を含む\n今後３か月間の売上高等",null,null,null,null,null,null,null,null,null,null,null,"左の期間に対応する\n前年同期の売上高等"]
[null,null,null,null,null,null,null,null,"令和　　　　　年　　　　　月",null,null,null,null,null,null,null,null,null,null,null,null,{"$f":"T25","v":0},null,null,null,null,null,null,null,"円",null,null,null,null,null,null,null,null,null,null,null,"円"]
[null,null,null,null,null,null,null,null,"令和　　　　　年　　　　　月",null,null,null,null,null,null,null,null,null,null,null,null,null,null,null,null,null,null,null,null,"円",null,null,null,null,null,null,null,null,null,null,null,"円"]
[null,null,null,null,null,null,null,null,"令和　　　　　年　　　　　月",null,null,null,null,null,null,null,null,null,null,null,null,null,null,null,null,null,null,null,null,"円",null,null,null,null,null,null,null,null,null,null,null,"円"]
[null,null,null,null,null,null,null,null,"小　　計　（２か月計）",null,null,null,null,null,null,null,null,null,null,null,null,{"$f":"SUM(V34:AC35)","v":0},null,null,null,null,null,null,null,"円",null,null,null,{"$f":"SUM(AH34:AO35)","v":0},null,null,null,null,null,null,null,"円"]
[null,null,null,null,null,null,null,null,"合　　　　　計",null,null,null,null,null,null,null,null,null,null,null,null,{"$f":"SUM(V33,V36)","v":0},null,null,null,null,null,null,null,"円",null,null,null,{"$f":"SUM(AH33,AH36)","v":0},null,null,null,null,null,null,null,"円"]
[]
[null,null,null,null,null,null,null,null,null,null,null,null,null,"減　少　率",null,null,null,null,"：","（　D　-　C　）　÷　D　×　100　＝",null,null,null,null,null,null,null,null,null,null,null,{"$f":"IFERROR(ROUNDDOWN(((AH33-V33)/AH33)*100,2),\"\")","v":""},null,null,null,null,"％","　≧　10　％"]
[]
[null,null,null,null,null,null,null,null,null,null,null,null,null,null,null,null,null,null,"{（D+F）-（C+E）} ÷ （D+F） × 100 ＝",null,null,null,null,null,null,null,null,null,null,null,null,{"$f":"IFERROR(ROUNDDOWN(((AH37-V37)/AH37)*100,2),\"\")","v":""},null,null,null,null,"％","　≧　10　％"]

{"sheet":"2号-1ロ","index":1,"n_rows":41,"n_cols":49,"rows_kept":41,"cut":false,"hidden":false,"merged":[[36,41,36,42],[38,19,38,30],[38,31,38,35],[38,37,38,42],[40,18,40,30],[40,31,40,35],[40,37,40,42],[36,8,36,18],[36,19,36,20],[36,21,36,28],[36,29,36,30],[36,31,36,32],[36,33,36,40],[34,41,34,42],[35,8,35,18],[35,19,35,20],[35,21,35,28],[35,29,35,30],[35,31,35,32],[35,33,35,40],[35,41,35,42],[34,8,34,18],[34,19,34,20],[34,21,34,28],[34,29,34,30],[34,31,34,32],[34,33,34,40],[32,41,32,42],[33,8,33,18],[33,19,33,20],[33,21,33,28],[33,29,33,30],[33,31,33,32],[33,33,33,40],[33,41,33,42],[32,8,32,18],[32,19,32,20],[32,21,32,28],[32,29,32,30],[32,31,32,32],[32,33,32,40],[25,41,25,42],[27,19,27,30],[27,31,27,35],[27,37,27,42],[29,8,29,42],[31,8,31,18],[31,19,31,30],[31,31,31,42],[25,8,25,18],[25,19,25,20],[25,21,25,27],[25,29,25,30],[25,31,25,32],[25,33,25,39],[23,8,23,18],[23,19,23,20],[23,31,23,42],[24,8,24,18],[24,19,24,28],[24,29,24,30],[24,31,24,40],[24,41,24,42],[21,8,21,18],[21,19,21,28],[21,29,21,30],[21,31,21,40],[21,41,21,42],[22,8,22,18],[22,19,22,28],[22,29,22,30],[22,31,22,40],[22,41,22,42],[19,8,19,18],[19,19,19,28],[19,29,19,30],[19,31,19,40],[19,41,19,42],[20,8,20,18],[20,19,20,28],[20,29,20,30],[20,31,20,40],[20,41,20,42],[17,8,17,18],[17,19,17,28],[17,29,17,30],[17,31,17,40],[17,41,17,42],[18,8,18,18],[18,19,18,28],[18,29,18,30],[18,31,18,40],[18,41,18,42],[15,8,15,18],[15,19,15,28],[15,29,15,30],[15,31,15,40],[15,41,15,42],[16,8,16,18],[16,19,16,28],[16,29,16,30],[16,31,16,40],[16,41,16,42],[13,8,13,18],[13,19,13,28],[13,29,13,30],[13,31,13,40],[13,41,13,42],[14,8,14,18],[14,19,14,28],[14,29,14,30],[14,31,14,40],[14,41,14,42],[9,8,9,42],[11,8,11,18],[11,19,11,30],[11,31,11,42],[12,8,12,18],[12,19,12,28],[12,29,12,30],[12,31,12,40],[12,41,12,42],[5,17,5,20],[5,22,5,40],[6,17,6,20],[6,22,6,40],[6,41,6,49],[7,17,7,20],[7,22,7,40],[1,0,1,49],[2,40,2,41],[2,43,2,44],[2,46,2,47],[4,17,4,20],[4,22,4,40]]}
[]
["中小企業信用保険法第2条第5項第2号-1ロ認定申請書添付資料"]
[null,null,null,null,null,null,null,null,null,null,null,null,null,null,null,null,null,null,null,null,null,null,null,null,null,null,null,null,null,null,null,null,null,null,null,null,null,null,"令和",null,null,null,"年",null,null,"月",null,null,"日"]
[]
[null,null,null,null,null,null,null,null,null,null,null,null,null,null,null,null,null,"所在地"]
[null,null,null,null,null,null,null,null,null,null,null,null,null,null,null,null,null,"企業名"]
[null,null,null,null,null,null,null,null,null,null,null,null,null,null,null,null,null,"代表者名",null,null,null,null,null,null,null,null,null,null,null,null,null,null,null,null,null,null,null,null,null,null,null,"個人事業主の場合\n代表者名は自署"]
[null,null,null,null,null,null,null,null,null,null,null,null,null,null,null,null,null,"電話番号",null,null,null,null,"(　　　　　　　　)"]
[]
[null,null,null,null,null,null,null,null,"（1）　（　　　　　　　　　　　　　　）に対する取引依存度"]
[]
[null,null,null,null,null,null,null,null,"　",null,null,null,null,null,null,null,null,null,null,"全取引額等",null,null,null,null,null,null,null,null,null,null,null,"　　　　　　　　　　　に対する取引額"]
[null,null,null,null,null,null,null,null,"令和　　　　　年　　　　　月",null,null,null,null,null,null,null,null,null,null,null,null,null,null,null,null,null,null,null,null,"円",null,null,null,null,null,null,null,null,null,null,null,"円"]
[null,null,null,null,null,null,null,null,"令和　　　　　年　　　　　月",null,null,null,null,null,null,null,null,null,null,null,null,null,null,null,null,null,null,null,null,"円",null,null,null,null,null,null,null,null,null,null,null,"円"]
[null,null,null,null,null,null,null,null,"令和　　　　　年　　　　　月",null,null,null,null,null,null,null,null,null,null,null,null,null,null,null,null,null,null,null,null,"円",null,null,null,null,null,null,null,null,null,null,null,"円"]
[null,null,null,null,null,null,null,null,"令和　　　　　年　　　　　月",null,null,null,null,null,null,null,null,null,null,null,null,null,null,null,null,null,null,null,null,"円",null,null,null,null,null,null,null,null,null,null,null,"円"]
[null,null,null,null,null,null,null,null,"令和　　　　　年　　　　　月",null,null,null,null,null,null,null,null,null,null,null,null,null,null,null,null,null,null,null,null,"円",null,null,null,null,null,null,null,null,null,null,null,"円"]
[null,null,null,null,null,null,null,null,"令和　　　　　年　　　　　月",null,null,null,null,null,null,null,null,null,null,null,null,null,null,null,null,null,null,null,null,"円",null,null,null,null,null,null,null,null,null,null,null,"円"]
[null,null,null,null,null,null,null,null,"令和　　　　　年　　　　　月",null,null,null,null,null,null,null,null,null,null,null,null,null,null,null,null,null,null,null,null,"円",null,null,null,null,null,null,null,null,null,null,null,"円"]
[null,null,null,null,null,null,null,null,"令和　　　　　年　　　　　月",null,null,null,null,null,null,null,null,null,null,null,null,null,null,null,null,null,null,null,null,"円",null,null,null,null,null,null,null,null,null,null,null,"円"]
[null,null,null,null,null,null,null,null,"令和　　　　　年　　　　　月",null,null,null,null,null,null,null,null,null,null,null,null,null,null,null,null,null,null,null,null,"円",null,null,null,null,null,null,null,null,null,null,null,"円"]
[null,null,null,null,null,null,null,null,"令和　　　　　年　　　　　月",null,null,null,null,null,null,null,null,null,null,null,null,null,null,null,null,null,null,null,null,"円",null,null,null,null,null,null,null,null,null,null,null,"円"]
[null,null,null,null,null,null,null,null,"令和　　　　　年　　　　　月",null,null,null,null,null,null,null,null,null,null,null,null,null,null,null,null,null,null,null,null,"円",null,null,null,null,null,null,null,null,null,null,null,"円"]
[null,null,null,null,null,null,null,null,"　　最近1か月",null,null,null,null,null,null,null,null,null,null,"【C】"]
[null,null,null,null,null,null,null,null,"令和　　　　　年　　　　　月",null,null,null,null,null,null,null,null,null,null,null,null,null,null,null,null,null,null,null,null,"円",null,null,null,null,null,null,null,null,null,null,null,"円"]
[null,null,null,null,null,null,null,null,"合　　　　　　計",null,null,null,null,null,null,null,null,null,null,"【B】",null,{"$f":"SUM(T13:AC23,T25)","v":0},null,null,null,null,null,null,null,"円",null,"【A】",null,{"$f":"SUM(AF13:AO23,AF25)","v":0},null,null,null,null,null,null,null,"円"]
[]
[null,null,null,null,null,null,null,null,null,null,null,null,null,"取引依存度",null,null,null,null,"：","（　A　/　B　）　×　100　＝",null,null,null,null,null,null,null,null,null,null,null,{"$f":"IFERROR(ROUNDDOWN((AH26/V26)*100,2),\"\")","v":""},null,null,null,null,"％","　≧　20　％"]
[]
[null,null,null,null,null,null,null,null,"（2）　売上高減少率"]
[]
[null,null,null,null,null,null,null,null,"　",null,null,null,null,null,null,null,null,null,null,"事業活動の制限の影響を受けた後の\n最近１か月を含む\n今後３か月間の売上高等",null,null,null,null,null,null,null,null,null,null,null,"左の期間に対応する\n前年同期の売上高等"]
[null,null,null,null,null,null,null,null,"令和　　　　　年　　　　　月",null,null,null,null,null,null,null,null,null,null,null,null,{"$f":"T25","v":0},null,null,null,null,null,null,null,"円",null,null,null,null,null,null,null,null,null,null,null,"円"]
[null,null,null,null,null,null,null,null,"令和　　　　　年　　　　　月",null,null,null,null,null,null,null,null,null,null,null,null,null,null,null,null,null,null,null,null,"円",null,null,null,null,null,null,null,null,null,null,null,"円"]
[null,null,null,null,null,null,null,null,"令和　　　　　年　　　　　月",null,null,null,null,null,null,null,null,null,null,null,null,null,null,null,null,null,null,null,null,"円",null,null,null,null,null,null,null,null,null,null,null,"円"]
[null,null,null,null,null,null,null,null,"小　　計　（２か月計）",null,null,null,null,null,null,null,null,null,null,null,null,{"$f":"SUM(V34:AC35)","v":0},null,null,null,null,null,null,null,"円",null,null,null,{"$f":"SUM(AH34:AO35)","v":0},null,null,null,null,null,null,null,"円"]
[null,null,null,null,null,null,null,null,"合　　　　　計",null,null,null,null,null,null,null,null,null,null,null,null,{"$f":"SUM(V33,V36)","v":0},null,null,null,null,null,null,null,"円",null,null,null,{"$f":"SUM(AH33,AH36)","v":0},null,null,null,null,null,null,null,"円"]
[]
[null,null,null,null,null,null,null,null,null,null,null,null,null,"減　少　率",null,null,null,null,"：","（　D　-　C　）　÷　D　×　100　＝",null,null,null,null,null,null,null,null,null,null,null,{"$f":"IFERROR(ROUNDDOWN(((AH33-V33)/AH33)*100,2),\"\")","v":""},null,null,null,null,"％","　≧　10　％"]
[]
[null,null,null,null,null,null,null,null,null,null,null,null,null,null,null,null,null,null,"{（D+F）-（C+E）} ÷ （D+F） × 100 ＝",null,null,null,null,null,null,null,null,null,null,null,null,{"$f":"IFERROR(ROUNDDOWN(((AH37-V37)/AH37)*100,2),\"\")","v":""},null,null,null,null,"％","　≧　10　％"]

{"sheet":"2号-1ハ","index":2,"n_rows":21,"n_cols":49,"rows_kept":21,"cut":false,"hidden":false,"merged":[[16,41,16,42],[18,19,18,30],[18,31,18,35],[18,37,18,42],[20,18,20,30],[20,31,20,35],[20,37,20,42],[16,8,16,18],[16,19,16,20],[16,21,16,28],[16,29,16,30],[16,31,16,32],[16,33,16,40],[14,41,14,42],[15,8,15,18],[15,19,15,20],[15,21,15,28],[15,29,15,30],[15,31,15,32],[15,33,15,40],[15,41,15,42],[14,8,14,18],[14,19,14,20],[14,21,14,28],[14,29,14,30],[14,31,14,32],[14,33,14,40],[12,41,12,42],[13,8,13,18],[13,19,13,20],[13,21,13,28],[13,29,13,30],[13,31,13,32],[13,33,13,40],[13,41,13,42],[12,8,12,18],[12,19,12,20],[12,21,12,28],[12,29,12,30],[12,31,12,32],[12,33,12,40],[9,8,9,42],[11,8,11,18],[11,19,11,30],[11,31,11,42],[5,17,5,20],[5,22,5,40],[6,17,6,20],[6,22,6,40],[6,41,6,49],[7,17,7,20],[7,22,7,40],[1,0,1,49],[2,40,2,41],[2,43,2,44],[2,46,2,47],[4,17,4,20],[4,22,4,40]]}
[]
["中小企業信用保険法第2条第5項第2号-1ハ認定申請書添付資料"]
[null,null,null,null,null,null,null,null,null,null,null,null,null,null,null,null,null,null,null,null,null,null,null,null,null,null,null,null,null,null,null,null,null,null,null,null,null,null,"令和",null,null,null,"年",null,null,"月",null,null,"日"]
[]
[null,null,null,null,null,null,null,null,null,null,null,null,null,null,null,null,null,"所在地"]
[null,null,null,null,null,null,null,null,null,null,null,null,null,null,null,null,null,"企業名"]
[null,null,null,null,null,null,null,null,null,null,null,null,null,null,null,null,null,"代表者名",null,null,null,null,null,null,null,null,null,null,null,null,null,null,null,null,null,null,null,null,null,null,null,"個人事業主の場合\n代表者名は自署"]
[null,null,null,null,null,null,null,null,null,null,null,null,null,null,null,null,null,"電話番号",null,null,null,null,"(　　　　　　　　)"]
[]
[null,null,null,null,null,null,null,null,"　売上高減少率"]
[]
[null,null,null,null,null,null,null,null,"　",null,null,null,null,null,null,null,null,null,null,"事業活動の制限の影響を受けた後の\n最近１か月を含む\n今後３か月間の売上高等",null,null,null,null,null,null,null,null,null,null,null,"左の期間に対応する\n前年同期の売上高等"]
[null,null,null,null,null,null,null,null,"令和　　　　　年　　　　　月",null,null,null,null,null,null,null,null,null,null,null,null,null,null,null,null,null,null,null,null,"円",null,null,null,null,null,null,null,null,null,null,null,"円"]
[null,null,null,null,null,null,null,null,"令和　　　　　年　　　　　月",null,null,null,null,null,null,null,null,null,null,null,null,null,null,null,null,null,null,null,null,"円",null,null,null,null,null,null,null,null,null,null,null,"円"]
[null,null,null,null,null,null,null,null,"令和　　　　　年　　　　　月",null,null,null,null,null,null,null,null,null,null,null,null,null,null,null,null,null,null,null,null,"円",null,null,null,null,null,null,null,null,null,null,null,"円"]
[null,null,null,null,null,null,null,null,"小　　計　（２か月計）",null,null,null,null,null,null,null,null,null,null,null,null,{"$f":"SUM(V14:AC15)","v":0},null,null,null,null,null,null,null,"円",null,null,null,{"$f":"SUM(AH14:AO15)","v":0},null,null,null,null,null,null,null,"円"]
[null,null,null,null,null,null,null,null,"合　　　　　計",null,null,null,null,null,null,null,null,null,null,null,null,{"$f":"SUM(V13,V16)","v":0},null,null,null,null,null,null,null,"円",null,null,null,{"$f":"SUM(AH13,AH16)","v":0},null,null,null,null,null,null,null,"円"]
[]
[null,null,null,null,null,null,null,null,null,null,null,null,null,"減　少　率",null,null,null,null,"：","（　B　-　A　）　÷　B　×　100　＝",null,null,null,null,null,null,null,null,null,null,null,{"$f":"IFERROR(ROUNDDOWN(((AH13-V13)/AH13)*100,2),\"\")","v":""},null,null,null,null,"％","　≧　10　％"]
[]
[null,null,null,null,null,null,null,null,null,null,null,null,null,null,null,null,null,null,"{（B+D）-（A+C）} ÷ （B+D） × 100 ＝",null,null,null,null,null,null,null,null,null,null,null,null,{"$f":"IFERROR(ROUNDDOWN(((AH17-V17)/AH17)*100,2),\"\")","v":""},null,null,null,null,"％","　≧　10　％"]